bitfinex-derivatives/quotes_BTCF0:USTF0_20250504
["timestamp","ask_amount","ask_price","bid_price","bid_amount"]
[1746394977437,0.0045,95745.0,95744.0,0.772419]
[1746394977636,0.0045,95745.0,95744.0,1.494019]
[1746394977837,0.0045,95745.0,95744.0,0.772419]
[1746394978039,0.0045,95745.0,95744.0,1.494019]
[1746394981446,0.0045,95745.0,95744.0,0.772419]
[1746394981742,0.0045,95745.0,95744.0,1.494019]
[1746394984047,0.0045,95745.0,95744.0,0.772419]
[1746394984253,0.0045,95745.0,95744.0,1.494019]
[1746394991054,0.0045,95745.0,95744.0,0.772419]
[1746394991348,0.0045,95745.0,95744.0,1.494019]
[1746394999970,0.0045,95745.0,95744.0,0.772419]
[1746395000269,0.0045,95745.0,95744.0,1.494019]
[1746395000661,0.0045,95745.0,95744.0,0.772419]
[1746395000865,0.0045,95745.0,95744.0,1.494019]
[1746395023889,0.0045,95745.0,95744.0,0.772419]
[1746395024090,0.0045,95745.0,95744.0,1.494019]
[1746395030989,0.0045,95745.0,95744.0,1.304019]
[1746395031187,0.0045,95745.0,95744.0,1.664019]
[1746395033392,0.2133568,95745.0,95744.0,1.334019]
[1746395033595,0.0045,95745.0,95744.0,1.334019]
[1746395033788,0.0045,95745.0,95744.0,1.301519]
[1746395034196,0.0363,95745.0,95744.0,1.239359]
[1746395034388,0.0363,95745.0,95744.0,1.301479]
[1746395046999,0.0663,95745.0,95744.0,1.301479]
[1746395050503,0.0363,95745.0,95744.0,1.301479]
[1746395056110,0.0045,95745.0,95744.0,1.301479]
[1746395056312,0.0658,95748.0,95747.0,1.63370787]
[1746395056608,0.0658,95748.0,95747.0,1.79370787]
[1746395057108,0.0658,95748.0,95747.0,1.91170787]
[1746395057307,0.0658,95748.0,95747.0,1.97430787]
[1746395057701,0.2766503,95748.0,95747.0,1.97430787]
[1746395058800,0.2786503,95748.0,95747.0,1.97430787]
[1746395063311,0.2461503,95748.0,95747.0,1.97430787]
[1746395064416,0.2128503,95748.0,95747.0,1.97430787]
[1746395065704,0.004,95748.0,95747.0,1.97430787]
[1746395065911,0.00383784,96960.0,95747.0,1.97430787]
[1746395065912,0.13318794,95760.0,95759.0,0.2088263]
[1746395066105,0.34201494,95760.0,95759.0,0.64292]
[1746395067114,0.212827,95760.0,95759.0,0.64292]
[1746395067320,0.216827,95760.0,95759.0,0.60292]
[1746395068723,0.216827,95760.0,95759.0,0.63542]
[1746395069924,0.247827,95760.0,95759.0,0.63542]
[1746395071226,0.261327,95760.0,95759.0,0.63542]
[1746395073228,0.261327,95760.0,95759.0,0.60292]
[1746395073818,0.230327,95760.0,95759.0,0.60292]
[1746395074023,0.230327,95760.0,95759.0,0.63512]
[1746395078634,0.216827,95760.0,95759.0,0.63512]
[1746395082134,0.216827,95760.0,95759.0,0.75312]
[1746395086335,0.216827,95760.0,95759.0,0.63512]
[1746395088139,0.216827,95760.0,95759.0,0.75312]
[1746395090240,0.216827,95760.0,95759.0,0.63512]
[1746395091140,0.216827,95760.0,95759.0,0.75312]
[1746395092129,0.216827,95760.0,95759.0,0.63512]
[1746395093239,0.216827,95760.0,95759.0,0.75312]
[1746395098744,0.216827,95760.0,95759.0,0.78432]
[1746395101346,0.216827,95760.0,95759.0,0.78432]
[1746395127859,0.216827,95760.0,95759.0,0.76432]
[1746395128358,0.216827,95760.0,95759.0,0.77432]
[1746395131765,0.216827,95760.0,95759.0,0.7122]
[1746395132362,0.216827,95760.0,95759.0,0.7022]
[1746395132562,0.216827,95760.0,95759.0,0.7122]
[1746395133057,0.216827,95760.0,95759.0,0.77432]
[1746395136171,0.216827,95760.0,95759.0,0.41352]
[1746395136358,0.216827,95760.0,95759.0,0.77432]
[1746395137567,0.216827,95760.0,95759.0,0.76432]
[1746395139760,0.216827,95760.0,95759.0,0.7022]
[1746395141070,0.216827,95760.0,95759.0,0.76432]
[1746395174494,0.246827,95760.0,95759.0,0.76432]
[1746395176199,0.216827,95760.0,95759.0,0.76432]
[1746395177600,0.226827,95760.0,95759.0,0.76432]
[1746395177801,0.216827,95760.0,95759.0,0.76432]
[1746395181101,0.256827,95760.0,95759.0,0.76432]
[1746395181303,0.216827,95760.0,95759.0,0.76432]
[1746395181802,0.306827,95760.0,95759.0,0.76432]
[1746395182003,0.526827,95760.0,95759.0,0.2820009]
[1746395182301,0.2088263,95759.0,95758.0,0.0317]
[1746395182501,0.6433263,95759.0,95758.0,0.0317]
[1746395182803,0.6133263,95759.0,95758.0,0.0317]
[1746395183205,0.2088415,95752.0,95751.0,0.09222]
[1746395183401,0.3936715,95752.0,95751.0,0.09222]
[1746395184108,0.4257715,95752.0,95751.0,0.09222]
[1746395184908,0.4277715,95752.0,95751.0,0.09222]
[1746395185108,0.4297715,95752.0,95751.0,0.09222]
[1746395185608,0.4297715,95752.0,95751.0,0.12532]
[1746395186503,0.4297715,95752.0,95751.0,0.15822]
[1746395195413,0.6397715,95752.0,95751.0,0.15822]
[1746395199122,0.6397715,95752.0,95751.0,0.27622]
[1746395200120,0.6397715,95752.0,95751.0,0.15822]
[1746395200326,0.71410087,95752.0,95751.0,0.15822]
[1746395201134,0.71410087,95752.0,95751.0,0.27622]
[1746395201626,0.71410087,95752.0,95751.0,0.2141]
[1746395204438,0.6076715,95752.0,95751.0,0.2141]
[1746395208135,0.6076715,95752.0,95751.0,0.0961]
[1746395210237,0.6076715,95752.0,95751.0,0.2141]
[1746395227145,0.7256715,95752.0,95751.0,0.0961]
[1746395236157,0.6076715,95752.0,95751.0,0.2141]
[1746395241156,0.6076715,95752.0,95691.0,0.00181784]
[1746395241157,0.2088699,95739.0,95738.0,0.42288]
[1746395241363,0.2088699,95739.0,95735.0,0.0307]
[1746395241364,0.2088764,95736.0,95735.0,0.0307]
[1746395241659,0.3988764,95736.0,95735.0,0.0307]
[1746395242253,0.4298764,95736.0,95735.0,0.1163238]
[1746395242452,0.2088939,95728.0,95726.0,0.0304]
[1746395242653,0.2678939,95728.0,95727.0,0.01156695]
[1746395243049,0.2678939,95728.0,95727.0,0.12956695]
[1746395243258,0.3285939,95728.0,95727.0,0.12956695]
[1746395244060,0.3285939,95728.0,95727.0,0.13256695]
[1746395244258,0.3285939,95728.0,95727.0,0.16386695]
[1746395245161,0.3285939,95728.0,95727.0,0.16686695]
[1746395252368,0.3285939,95728.0,95727.0,0.19846695]
[1746395256770,0.2685939,95728.0,95727.0,0.19846695]
[1746395269914,0.34835093,95728.0,95727.0,0.19846695]
[1746395273418,0.2685939,95728.0,95727.0,0.19846695]
[1746395273824,0.2785939,95728.0,95727.0,0.19846695]
[1746395274814,0.4585939,95728.0,95724.0,0.3608]
[1746395275016,0.2089004,95725.0,95724.0,0.27094675]
[1746395275212,0.2089157,95718.0,95707.0,0.0015672]
[1746395275419,0.2689157,95718.0,95717.0,0.09089779]
[1746395275648,0.2689157,95718.0,95717.0,0.07089779]
[1746395275814,0.2689157,95718.0,95717.0,9e-08]
[1746395276022,0.2089332,95710.0,95709.0,0.06212]
[1746395276226,0.6297332,95710.0,95709.0,0.20012]
[1746395276417,0.6267332,95710.0,95709.0,0.20012]
[1746395276822,0.6900332,95710.0,95709.0,0.20012]
[1746395277015,0.6800332,95710.0,95709.0,0.20012]
[1746395277622,0.6810332,95710.0,95709.0,0.20712]
[1746395278211,0.68877254,95710.0,95709.0,0.20712]
[1746395278713,0.68877254,95710.0,95709.0,0.20912]
[1746395282095,0.32797254,95710.0,95709.0,0.20912]
[1746395282297,0.68877254,95710.0,95709.0,0.20912]
[1746395282996,0.32797254,95710.0,95709.0,0.23932]
[1746395283196,0.68877254,95710.0,95709.0,0.23932]
[1746395286998,0.68877254,95710.0,95709.0,0.20912]
[1746395289097,0.32797254,95710.0,95709.0,0.24142]
[1746395289299,0.69932155,95710.0,95709.0,0.24142]
[1746395294414,0.69932155,95710.0,95709.0,0.20912]
[1746395297101,0.68877254,95710.0,95709.0,0.20912]
[1746395297302,0.62877254,95710.0,95709.0,0.24212]
[1746395297600,0.65877254,95710.0,95709.0,0.24212]
[1746395300009,0.29797254,95710.0,95709.0,0.24212]
[1746395300301,0.65877254,95710.0,95709.0,0.24212]
[1746395301504,0.65877254,95710.0,95709.0,0.20912]
[1746395301904,0.62877254,95710.0,95709.0,0.24022]
[1746395307306,0.56547254,95710.0,95709.0,0.24022]
[1746395307709,0.5577332,95710.0,95709.0,0.24022]
[1746395308210,0.5577332,95710.0,95709.0,0.4491554]
[1746395308400,0.5707332,95710.0,95709.0,0.5091554]
[1746395308800,0.3618,95710.0,95709.0,0.5091554]
[1746395309003,0.001,95710.0,95709.0,0.7891554]
[1746395309399,0.001,95710.0,95709.0,0.8219554]
[1746395309811,0.2099332,95710.0,95709.0,0.9264394]
[1746395310714,0.001,95710.0,95709.0,0.9264394]
[1746395311711,0.2099332,95710.0,95709.0,0.9264394]
[1746395314212,0.052229,95718.0,95717.0,0.2611425]
[1746395314414,0.052229,95718.0,95717.0,0.5511425]
[1746395314614,0.07978887,95722.0,95721.0,0.2089092]
[1746395314809,0.07978887,95722.0,95721.0,0.4789092]
[1746395315216,0.07978887,95722.0,95721.0,0.5969092]
[1746395315417,0.07978887,95722.0,95721.0,0.6594092]
[1746395316210,0.2089029,95724.0,95723.0,0.2089048]
[1746395316410,0.2089029,95724.0,95723.0,0.5310248]
[1746395317110,0.2089029,95724.0,95723.0,0.6490248]
[1746395317916,0.2089029,95724.0,95723.0,0.6510248]
[1746395318919,0.2099029,95724.0,95723.0,0.6510248]
[1746395326026,0.2401029,95724.0,95723.0,0.6510248]
[1746395329929,0.2099029,95724.0,95723.0,0.6510248]
[1746395330414,0.2429029,95724.0,95723.0,0.6510248]
[1746395332326,0.2429029,95724.0,95723.0,1.0118248]
[1746395338931,0.2429029,95724.0,95723.0,0.6510248]
[1746395339126,0.2429029,95724.0,95723.0,1.0118248]
[1746395352434,0.2429029,95724.0,95723.0,0.6510248]
[1746395352635,0.2429029,95724.0,95723.0,1.0118248]
[1746395353436,0.2429029,95724.0,95723.0,0.6510248]
[1746395353639,0.2429029,95724.0,95723.0,1.0118248]
[1746395353827,0.2429029,95724.0,95723.0,0.6510248]
[1746395354028,0.2429029,95724.0,95723.0,1.0118248]
[1746395354630,0.2429029,95724.0,95723.0,0.6510248]
[1746395354835,0.2429029,95724.0,95723.0,1.0118248]
[1746395357337,0.2429029,95724.0,95723.0,1.0760248]
[1746395358233,0.2429029,95724.0,95723.0,0.7152248]
[1746395358532,0.2429029,95724.0,95723.0,1.0760248]
[1746395359239,0.2429029,95724.0,95723.0,0.7152248]
[1746395359439,0.2429029,95724.0,95723.0,1.0760248]
[1746395360032,0.2429029,95724.0,95723.0,0.7152248]
[1746395360234,0.2429029,95724.0,95723.0,1.0760248]
[1746395360642,0.2429029,95724.0,95723.0,1.23557431]
[1746395367945,0.2429029,95724.0,95723.0,0.87477431]
[1746395368241,0.2429029,95724.0,95723.0,1.23557431]
[1746395369945,0.2429029,95724.0,95723.0,0.87477431]
[1746395370137,0.2429029,95724.0,95723.0,1.23557431]
[1746395373346,0.2429029,95724.0,95723.0,0.87477431]
[1746395373546,0.2429029,95724.0,95723.0,1.23557431]
[1746395375246,0.2429029,95724.0,95723.0,0.87477431]
[1746395375449,0.2429029,95724.0,95723.0,1.23557431]
[1746395376051,0.2429029,95724.0,95723.0,0.87477431]
[1746395376350,0.2429029,95724.0,95723.0,1.23557431]
[1746395377748,0.2429029,95724.0,95723.0,0.87477431]
[1746395377950,0.2429029,95724.0,95723.0,1.23557431]
[1746395381953,0.2429029,95724.0,95723.0,1.0760248]
[1746395382252,0.2429029,95724.0,95723.0,0.7152248]
[1746395382454,0.2429029,95724.0,95723.0,1.0760248]
[1746395384357,0.2429029,95724.0,95723.0,0.7152248]
[1746395384547,0.2429029,95724.0,95723.0,1.0760248]
[1746395393862,0.2429029,95724.0,95723.0,1.23557431]
[1746395411173,0.034,95724.0,95723.0,1.23557431]
[1746395412075,0.0663,95724.0,95723.0,1.23557431]
[1746395413578,0.2752026,95724.0,95723.0,1.23557431]
[1746395415581,0.2752026,95724.0,95723.0,1.0760248]
[1746395422993,0.2752026,95724.0,95723.0,1.23557431]
[1746395433205,0.2752026,95724.0,95723.0,1.0760248]
[1746395443009,0.2752026,95724.0,95723.0,1.23583928]
[1746395466953,0.2752026,95724.0,95723.0,1.0760248]
[1746395480157,0.2752026,95724.0,95723.0,1.23583983]
[1746395480756,0.2752026,95724.0,95723.0,0.87503983]
[1746395480958,0.2752026,95724.0,95723.0,1.23583983]
[1746395490062,0.2752026,95724.0,95723.0,1.0760248]
[1746395492158,0.2752026,95724.0,95723.0,0.7152248]
[1746395492463,0.2752026,95724.0,95723.0,1.0760248]
[1746395495867,0.2752026,95724.0,95723.0,1.23583938]
[1746395502068,0.2752026,95724.0,95723.0,1.0760248]
[1746395503871,0.2752026,95724.0,95723.0,1.1077248]
[1746395508477,0.2752026,95724.0,95723.0,1.26753938]
[1746395516580,0.0663,95724.0,95723.0,1.26753938]
[1746395516879,0.0663,95724.0,95723.0,1.23583938]
[1746395532094,0.2752026,95724.0,95723.0,1.23583938]
[1746395532486,0.2752026,95724.0,95723.0,0.87503938]
[1746395532785,0.2752026,95724.0,95723.0,1.23583938]
[1746395534394,0.0663,95724.0,95723.0,1.23583938]
[1746395546304,0.0663,95724.0,95723.0,1.17163938]
[1746395548398,0.0663,95724.0,95723.0,1.20263938]
[1746395551299,0.2752026,95724.0,95723.0,1.20263938]
[1746395551796,0.2752026,95724.0,95723.0,1.08263938]
[1746395551986,0.2752026,95724.0,95723.0,1.19263938]
[1746395552192,0.2752026,95724.0,95723.0,1.0328248]
[1746395553204,0.0663,95724.0,95723.0,1.0328248]
[1746395553396,0.2752026,95724.0,95723.0,1.0328248]
[1746395560904,0.0663,95724.0,95723.0,1.0328248]
[1746395562504,0.2752026,95724.0,95723.0,1.0328248]
[1746395566902,0.2752026,95724.0,95723.0,1.19263759]
[1746395573812,0.2752026,95724.0,95723.0,1.0328248]
[1746395579614,0.2752026,95724.0,95723.0,0.6720248]
[1746395579805,0.2752026,95724.0,95723.0,1.0328248]
[1746395580215,0.2752026,95724.0,95723.0,0.6720248]
[1746395580416,0.2752026,95724.0,95723.0,1.0328248]
[1746395589330,0.2752026,95724.0,95723.0,0.6720248]
[1746395589524,0.2752026,95724.0,95723.0,1.0328248]
[1746395590228,0.2752026,95724.0,95723.0,1.19259179]
[1746395597136,0.2752026,95724.0,95723.0,1.0328248]
[1746395602940,0.2752026,95724.0,95723.0,1.0327048]
[1746395603841,0.2752026,95724.0,95723.0,1.1924762]
[1746395605239,0.0663,95724.0,95723.0,1.1924762]
[1746395606736,0.2752026,95724.0,95723.0,1.1924762]
[1746395607147,0.2752026,95724.0,95723.0,1.0327048]
[1746395610347,0.0663,95724.0,95723.0,1.0327048]
[1746395610646,0.0663,95724.0,95723.0,1.0660048]
[1746395611644,0.2752026,95724.0,95723.0,1.0660048]
[1746395613944,0.0663,95724.0,95723.0,1.0660048]
[1746395615244,0.0663,95724.0,95723.0,1.2257762]
[1746395621348,0.0663,95724.0,95723.0,1.2357762]
[1746395622551,0.0663,95724.0,95723.0,1.5257762]
[1746395631156,0.0663,95724.0,95723.0,1.3660048]
[1746395638861,0.0663,95724.0,95723.0,1.5257762]
[1746395645957,0.07978887,95736.0,95723.0,1.5257762]
[1746395646147,0.28866527,95736.0,95735.0,0.2088786]
[1746395646352,0.28866527,95736.0,95735.0,0.3888786]
[1746395647161,0.29066527,95736.0,95735.0,0.5068786]
[1746395648161,0.29266527,95736.0,95735.0,0.5068786]
[1746395649165,0.08578887,95736.0,95735.0,0.5068786]
[1746395649460,0.29466527,95736.0,95735.0,0.51725664]
[1746395650162,0.2775764,95736.0,95735.0,0.51725664]
[1746395650364,0.0687,95736.0,95735.0,0.51725664]
[1746395651362,0.2775764,95736.0,95735.0,0.52527531]
[1746395654264,0.2775764,95736.0,95735.0,0.57839727]
[1746395654965,0.2765764,95736.0,95735.0,0.57839727]
[1746395655167,0.2765764,95736.0,95735.0,0.54569727]
[1746395657759,0.2765764,95736.0,95735.0,0.57729727]
[1746395658870,0.2765764,95736.0,95735.0,0.58777369]
[1746395659462,0.2456764,95736.0,95735.0,0.58777369]
[1746395659671,0.2138764,95736.0,95735.0,0.58777369]
[1746395659859,0.2138764,95736.0,95735.0,0.57729727]
[1746395660967,0.2795764,95736.0,95735.0,0.57729727]
[1746395661967,0.2795764,95736.0,95735.0,0.60869727]
[1746395665076,0.0379,95736.0,95735.0,0.60869727]
[1746395666373,0.005,95736.0,95735.0,0.60869727]
[1746395670572,0.2138764,95736.0,95735.0,0.60869727]
[1746395671774,0.005,95736.0,95735.0,0.60869727]
[1746395675280,0.036,95736.0,95735.0,0.60869727]
[1746395676988,0.2448764,95736.0,95735.0,0.60869727]
[1746395677190,0.036,95736.0,95735.0,0.60869727]
[1746395688492,0.0671,95736.0,95735.0,0.60869727]
[1746395690095,0.005,95736.0,95735.0,0.60869727]
[1746395692499,0.005,95736.0,95735.0,0.85869727]
[1746395706306,0.038,95736.0,95735.0,0.85869727]
[1746395713095,0.0689,95736.0,95735.0,0.85869727]
[1746395735342,0.0689,95736.0,95735.0,0.92065727]
[1746395744847,0.2777764,95736.0,95735.0,0.92065727]
[1746395767373,0.0689,95736.0,95735.0,0.92065727]
[1746395769569,0.2777764,95736.0,95735.0,0.55601867]
[1746395769770,0.2777764,95736.0,95735.0,0.28601867]
[1746395770270,0.2777764,95736.0,95735.0,0.16801867]
[1746395773567,0.28819476,95736.0,95735.0,0.16801867]
[1746395778079,0.28819476,95736.0,95735.0,0.28601867]
[1746395779181,0.28819476,95736.0,95735.0,0.16801867]
[1746395780281,0.28819476,95736.0,95735.0,0.28601867]
[1746395780681,0.64899476,95736.0,95735.0,0.28601867]
[1746395784594,0.76899476,95736.0,95735.0,0.28601867]
[1746395793601,0.76899476,95736.0,95735.0,0.278]
[1746395793900,0.2089179,95717.0,95716.0,0.5697132]
[1746395794101,0.2489179,95717.0,95716.0,0.4896132]
[1746395795398,0.2489179,95717.0,95716.0,0.5529132]
[1746395795604,0.2489179,95717.0,95716.0,0.56379578]
[1746395797106,0.2089179,95717.0,95716.0,0.56379578]
[1746395797403,0.2189179,95717.0,95716.0,0.56379578]
[1746395797600,0.2189179,95717.0,95716.0,0.5559132]
[1746395800106,0.2189179,95717.0,95716.0,0.56360224]
[1746395803008,0.2189179,95717.0,95716.0,0.35468904]
[1746395811911,0.2189179,95717.0,95716.0,0.347]
[1746395812111,0.2189179,95717.0,95716.0,0.3169]
[1746395812315,0.2499179,95717.0,95716.0,0.3169]
[1746395812806,0.2800179,95717.0,95716.0,0.3169]
[1746395824127,0.6408179,95717.0,95716.0,0.3169]
[1746395825022,0.2800179,95717.0,95716.0,0.3169]
[1746395825325,0.6408179,95717.0,95716.0,0.3169]
[1746395827726,0.6408179,95717.0,95716.0,0.1869]
[1746395832330,0.6408179,95717.0,95716.0,0.1969]
[1746395849044,0.6308179,95717.0,95716.0,0.2469]
[1746395852252,0.6508179,95717.0,95716.0,0.1969]
[1746395854359,0.2900179,95717.0,95716.0,0.1969]
[1746395854655,0.6508179,95717.0,95716.0,0.1969]
[1746395858854,0.2900179,95717.0,95716.0,0.1969]
[1746395859056,0.6508179,95717.0,95716.0,0.1969]
[1746395859958,0.2900179,95717.0,95716.0,0.1969]
[1746395860159,0.6508179,95717.0,95716.0,0.1969]
[1746395861760,0.6508179,95717.0,95716.0,0.1642]
[1746395862567,0.66147516,95717.0,95716.0,0.1642]
[1746395865769,0.30067516,95717.0,95716.0,0.1642]
[1746395866069,0.66147516,95717.0,95716.0,0.1642]
[1746395884385,0.66147516,95717.0,95716.0,0.0279157]
[1746395884576,0.2089354,95709.0,95708.0,0.0044202]
[1746395884775,0.9742194,95709.0,95708.0,0.0044202]
[1746395884978,0.9942194,95709.0,95708.0,0.0044202]
[1746395885178,0.9942194,95709.0,95708.0,1e-07]
[1746395885380,1.0261194,95709.0,95708.0,1e-07]
[1746395885687,1.0370194,95709.0,95708.0,1e-07]
[1746395886188,1.0370194,95709.0,95708.0,0.1180001]
[1746395886782,1.0370194,95709.0,95708.0,0.1200001]
[1746395886985,1.0370194,95709.0,95708.0,0.1240001]
[1746395887283,1.0370194,95709.0,95708.0,0.1220001]
[1746395887483,1.0370194,95709.0,95708.0,0.1230001]
[1746395889985,1.11680827,95709.0,95708.0,0.123]
[1746395892285,1.11680827,95709.0,95708.0,0.12]
[1746395892889,1.11680827,95709.0,95708.0,0.119]
[1746395893087,1.11680827,95709.0,95708.0,0.12]
[1746395893288,1.11680827,95709.0,95708.0,0.119]
[1746395893481,1.11780827,95709.0,95708.0,0.119]
[1746395893681,0.2089397,95707.0,95706.0,0.0308]
[1746395893882,0.4289397,95707.0,95706.0,0.0308]
[1746395894084,1.2550277,95707.0,95706.0,0.0308]
[1746395894289,1.3186277,95707.0,95706.0,0.1488]
[1746395895189,1.3196277,95707.0,95706.0,0.1498]
[1746395897190,1.2151397,95707.0,95706.0,0.1498]
[1746395906293,1.2151397,95707.0,95706.0,0.1813]
[1746395907095,1.2151397,95707.0,95706.0,0.2115]
[1746395908093,0.4935397,95707.0,95706.0,0.2115]
[1746395908297,1.2151397,95707.0,95706.0,0.2115]
[1746395913196,0.4935397,95707.0,95706.0,0.2115]
[1746395913399,1.2151397,95707.0,95706.0,0.2115]
[1746395921503,0.4935397,95707.0,95706.0,0.2115]
[1746395921702,0.2089703,95693.0,95690.0,0.00785318]
[1746395921905,0.6397703,95693.0,95692.0,0.13156752]
[1746395922202,0.6397703,95693.0,95692.0,0.24956752]
[1746395923006,0.6407703,95693.0,95692.0,0.25356752]
[1746395923207,0.6407703,95693.0,95692.0,0.25556752]
[1746395928096,0.6407703,95693.0,95692.0,0.28446752]
[1746395928301,0.6397703,95693.0,95692.0,0.28446752]
[1746395929009,0.6397703,95693.0,95692.0,0.28146752]
[1746395929211,0.6397703,95693.0,95692.0,0.28346752]
[1746395931202,0.6710703,95693.0,95692.0,0.28346752]
[1746395938615,0.7030703,95693.0,95692.0,0.28346752]
[1746395945323,0.7338703,95693.0,95692.0,0.28346752]
[1746395945514,0.7338703,95693.0,95692.0,0.25256752]
[1746395945714,0.2090009,95679.0,95678.0,0.06204]
[1746395945916,0.2090074,95676.0,95675.0,0.17923328]
[1746395946119,0.3890074,95676.0,95675.0,0.29723328]
[1746395946818,0.3830074,95676.0,95675.0,0.29723328]
[1746395947319,0.4437074,95676.0,95675.0,0.29723328]
[1746395947819,0.4437074,95676.0,95675.0,0.29823328]
[1746395948121,0.4447074,95676.0,95675.0,0.30223328]
[1746395948917,0.45512007,95676.0,95675.0,0.30223328]
[1746395950823,0.45512007,95676.0,95675.0,0.123]
[1746395955019,0.45512007,95676.0,95675.0,0.0912733]
[1746395955223,0.2090293,95666.0,95665.0,0.0309]
[1746395955424,0.3190293,95666.0,95665.0,0.0309]
[1746395956114,0.3807293,95666.0,95665.0,0.1489]
[1746395957024,0.3817293,95666.0,95665.0,0.1519]
[1746395957425,0.3817293,95666.0,95665.0,0.1539]
[1746395970228,0.2090293,95666.0,95665.0,0.328432]
[1746395970423,0.001,95666.0,95665.0,0.81981527]
[1746395970617,0.3608,95682.0,95681.0,0.2089965]
[1746395970828,0.2089943,95682.0,95681.0,0.17]
[1746395971129,0.2089943,95682.0,95681.0,0.288]
[1746395971720,0.2119943,95682.0,95681.0,0.288]
[1746395972830,0.2129943,95682.0,95681.0,0.288]
[1746395973032,0.2129943,95682.0,95681.0,0.3508]
[1746395982742,0.2129943,95682.0,95681.0,0.3208]
[1746395982943,0.2129943,95682.0,95681.0,0.3708]
[1746396000151,0.2129943,95682.0,95681.0,0.3401]
[1746396000347,0.004,95682.0,95681.0,0.9098965]
[1746396000542,0.2089767,95694.0,95693.0,0.2089659]
[1746396000748,0.3412188,95694.0,95693.0,0.4214903]
[1746396000954,0.2612188,95694.0,95693.0,0.21252]
[1746396001154,0.3237188,95694.0,95693.0,0.5394903]
[1746396001853,0.3287188,95694.0,95693.0,0.5394903]
[1746396002048,0.3287188,95694.0,95693.0,0.5894903]
[1746396002648,0.3327188,95694.0,95693.0,0.5894903]
[1746396002845,0.3327188,95694.0,95693.0,0.38052]
[1746396003052,0.3727188,95694.0,95693.0,0.33052]
[1746396003654,0.0522461,95687.0,95672.0,0.06252]
[1746396003851,0.209014,95673.0,95672.0,0.06252]
[1746396004051,0.2090402,95661.0,95660.0,0.3608]
[1746396004253,0.2090402,95661.0,95660.0,0.57332]
[1746396004748,0.2090468,95658.0,95657.0,0.00156809]
[1746396004964,0.6788468,95658.0,95657.0,0.00156809]
[1746396005150,0.6788468,95658.0,95657.0,0.11956809]
[1746396005456,0.0522645,95653.0,95645.0,0.00104553]
[1746396005755,0.565873,95646.0,95645.0,0.01104553]
[1746396005950,0.685873,95646.0,95645.0,0.01104553]
[1746396006150,0.685873,95646.0,95645.0,0.12904553]
[1746396006352,0.681873,95646.0,95645.0,0.12904553]
[1746396006552,0.742973,95646.0,95645.0,0.12904553]
[1746396006854,0.742973,95646.0,95645.0,0.13504553]
[1746396007253,0.742973,95646.0,95645.0,3e-08]
[1746396007452,1.447525,95646.0,95645.0,3e-08]
[1746396007863,1.127525,95646.0,95645.0,3e-08]
[1746396008660,1.128525,95646.0,95645.0,3e-08]
[1746396008862,0.209108,95630.0,95629.0,0.00010724]
[1746396009167,0.289108,95630.0,95629.0,0.128]
[1746396009863,0.355008,95630.0,95629.0,0.128]
[1746396010065,0.355008,95630.0,95629.0,0.129]
[1746396011054,0.356008,95630.0,95629.0,0.129]
[1746396015468,0.356008,95630.0,95629.0,0.119]
[1746396018772,0.1991771,95630.0,95615.0,0.00104586]
[1746396018962,0.2091386,95616.0,95615.0,0.14104586]
[1746396019163,0.2091386,95616.0,95615.0,0.25904586]
[1746396019164,0.2391386,95616.0,95615.0,0.25904586]
[1746396019766,0.3052386,95616.0,95615.0,0.25904586]
[1746396021172,0.3062386,95616.0,95615.0,0.25904586]
[1746396021767,0.3062386,95616.0,95615.0,0.26104586]
[1746396021971,0.2091714,95601.0,95600.0,0.3091701]
[1746396022271,0.2091714,95601.0,95600.0,0.5271701]
[1746396022470,0.2091714,95601.0,95600.0,0.318]
[1746396022664,0.2091714,95601.0,95600.0,0.57495508]
[1746396023164,0.2091714,95601.0,95600.0,0.60535508]
[1746396023364,0.2101714,95601.0,95600.0,0.57035508]
[1746396023659,0.2101714,95601.0,95600.0,0.60035508]
[1746396023865,0.2111714,95601.0,95600.0,0.60035508]
[1746396024264,0.2111714,95601.0,95600.0,0.61035508]
[1746396024464,0.2101714,95601.0,95600.0,0.61035508]
[1746396024664,0.2111714,95601.0,95600.0,0.61035508]
[1746396024966,0.2101714,95601.0,95600.0,0.60535508]
[1746396025168,0.2101714,95601.0,95600.0,0.60735508]
[1746396038481,0.2101714,95601.0,95600.0,0.39818148]
[1746396038778,0.2101714,95601.0,95600.0,0.43098148]
[1746396039171,0.21000941,95601.0,95600.0,0.64015508]
[1746396041675,0.21000941,95601.0,95600.0,0.63815508]
[1746396043682,0.001,95601.0,95600.0,0.63815508]
[1746396043979,0.2101714,95601.0,95600.0,0.63815508]
[1746396047783,0.2101714,95601.0,95600.0,0.68342937]
[1746396048083,0.2101714,95601.0,95600.0,0.63815508]
[1746396048386,0.2101714,95601.0,95600.0,0.68343265]
[1746396049785,0.001,95601.0,95600.0,0.68343265]
[1746396049982,0.001,95601.0,95600.0,0.74275508]
[1746396051886,0.001,95601.0,95600.0,0.92275508]
[1746396052696,0.001,95601.0,95600.0,0.96805714]
[1746396066100,0.001,95601.0,95600.0,1.32885714]
[1746396066602,0.2101714,95601.0,95600.0,1.16105714]
[1746396066995,0.2426714,95601.0,95600.0,0.73188354]
[1746396067190,0.2748714,95601.0,95600.0,0.68658148]
[1746396067398,0.2748714,95601.0,95600.0,0.73191313]
[1746396067601,0.5248714,95601.0,95600.0,0.68658148]
[1746396067803,0.5248714,95601.0,95600.0,0.73191193]
[1746396068194,0.5248714,95601.0,95600.0,0.89575508]
[1746396068805,0.2748714,95601.0,95600.0,0.89575508]
[1746396069194,0.2748714,95601.0,95600.0,0.92575508]
[1746396069903,0.3048714,95601.0,95600.0,0.32578148]
[1746396070103,0.2748714,95601.0,95600.0,0.32578148]
[1746396070302,0.2748714,95601.0,95600.0,0.53495508]
[1746396075015,0.2748714,95601.0,95600.0,0.32578148]
[1746396075216,0.2748714,95601.0,95600.0,0.53495508]
[1746396077419,0.3258714,95601.0,95600.0,0.53495508]
[1746396077617,0.2858714,95601.0,95600.0,0.53495508]
[1746396077819,0.2758714,95601.0,95600.0,0.53495508]
[1746396078623,0.2858714,95601.0,95600.0,0.53495508]
[1746396078926,0.0667,95601.0,95600.0,0.53495508]
[1746396079221,0.2758714,95601.0,95600.0,0.68495508]
[1746396079521,0.0345,95601.0,95600.0,0.68495508]
[1746396080220,0.0654,95601.0,95600.0,0.73024977]
[1746396080422,0.0654,95601.0,95600.0,0.68495508]
[1746396080623,0.2745714,95601.0,95600.0,0.68495508]
[1746396081925,0.2745714,95601.0,95600.0,0.84485614]